[Event "76th Montenegro Championship 2024"]
[Site "Podgorica"]
[Date "2024.02.10"]
[Round "5.3"]
[White "Djukic, Nikola"]
[Black "Smirnov, Artem"]
[Result "1-0"]
[ECO "B32"]
[WhiteElo "2529"]
[BlackElo "2406"]
[Annotator "TA"]
[PlyCount "131"]
[EventDate "2024.02.06"]
[EventType "swiss"]
[EventCountry "MNE"]
[SourceTitle "playchess.com"]
[Source "ChessBase"]
[SourceQuality "1"]
[TimeControl "40/5400+30:1800+30"]

{[%evp 51,131,105,64,35,90,95,132,130,107,110,106,110,424,202,185,189,179,183,185,185,193,193,181,189,247,226,320,160,167,119,106,124,131,109,110,117,106,94,122,125,126,135,201,194,264,232,226,181,289,248,652,648,673,665,576,698,710,710,704,624,683,660,1001,971,1001,950,722,606,1279,1288,1543,1543,29969,29969,29970,29969,29968,29968,5728,830,29984,29985]} 1. e4 {[%emt 0:01:08]} c5 {[%emt 0:00:08]} 2. Nf3 {[%emt 0:00:06]} Nc6 {[%emt 0:00:06]} 3. d4 {[%emt 0:00:06]} cxd4 {[%emt 0:00:05]} 4. Nxd4 {[%emt 0:00:05]} e5 {[%emt 0:00:04]} 5. Nb5 {[%emt 0:00:08]} d6 {[%emt 0:00:06]} 6. N1c3 a6 {[%emt 0:00:32]} 7. Na3 {[%emt 0:00:10]} Be6 {[%emt 0:00:06]} 8. Nc4 {[%emt 0:00:07]} Rb8 {[%emt 0:00:18]} 9. Nd5 {[%emt 1:33:10]} Bxd5 {[%emt 0:01:54]} 10. exd5 {[%emt 0:00:00]} Nce7 {[%emt 0:00:14]} 11. a4 {[%emt 0:00:00]} Nf6 {[%emt 0:10:22]} 12. g4 {[%emt 0:00:00]} h6 {[%emt 0:12:40]} 13. h4 {[%emt 0:00:00]} Ng6 {[%emt 0:35:24]} 14. h5 {[%emt 0:00:00]} Nf4 {[%emt 0:01:21]} 15. Bxf4 {[%emt 0:00:00]} exf4 {[%emt 0:00:03]} 16. Qf3 {[%emt 0:00:00]} Be7 {[%emt 0:17:21]} 17. Qxf4 {[%emt 0:00:00]} Nxd5 {[%emt 0:01:11]} 18. Qf5 {[%emt 0:00:00]} Nf6 {[%emt 0:01:08]} 19. Bd3 {[%emt 0:00:00]} Rc8 {[%emt 0:09:48]} 20. Ne3 {[%emt 0:00:00]} Rc5 {[%emt 0:01:15]} 21. Qf3 {[%emt 0:00:00]} Qb6 {[%emt 0:01:51]} 22. O-O-O {[%emt 0:00:00]} O-O {[%emt 0:02:42]} 23. Nf5 {[%emt 0:00:00]} Bd8 {[%emt 0:00:56]} 24. Nxd6 {[%emt 0:00:00]} Nd5 {[%emt 0:01:19]} 25. Ne4 {[%emt 0:00:00]} Bf6 {[%emt 0:00:27]} 26. Nxf6+ {[%emt 0:00:00]} (26. Nxc5 Bxb2+ 27. Kd2 Qxc5 $11) 26... Nxf6 {[%emt 0:00:01]} 27. Qf4 {[%emt 0:00:00]} Qe6 {[%emt 0:01:18]} (27... Nd5 $1 $14 28. Qe4 Nf6) 28. Qb4 {[%emt 0:00:00]} (28. f3 {seems wilder.} Qa2 29. Qb4 Rfc8 30. Rhe1) 28... Qc6 {[%emt 0:00:11]} 29. Rhe1 {[%emt 0:00:00]} Rc8 {[%emt 0:00:37]} 30. Rd2 {[%emt 0:00:00]} b5 {[%emt 0:00:59]} 31. Bf5 {[%emt 0:03:24]} (31. a5 {simplifies} Qc7 32. Bf5 Rf8 33. c3) 31... Rc4 $2 {[%emt 0:00:38][%mdl 8192]} (31... Rf8 $16) 32. Qd6 {[%emt 0:01:45]} (32. Qe7 $142 {Threatening mate with Rd8+.} Nd5 33. Qe5 (33. Qd7 Qxd7 34. Bxd7 Rxa4 $18)) 32... Qxd6 $18 {[%emt 0:00:52]} 33. Rxd6 {[%emt 0:00:09]} Ra8 {[%emt 0:00:28]} 34. axb5 {[%emt 0:02:07]} axb5 {[%emt 0:00:01] [#]} 35. f3 $1 {[%emt 0:00:11]} Rf4 {[%emt 0:00:59]} 36. Re3 {[%emt 0:00:48]} Kf8 {[%emt 0:00:32]} 37. Kd2 {[%emt 0:01:14]} b4 {[%emt 0:00:29]} (37... Rb8 {was worth a try.} 38. Bd3 Ne8) 38. Red3 $18 {[%emt 0:01:48]} Re8 {[%emt 0:00:20]} (38... Nxh5 $142 39. Be4 Rxe4) 39. R6d4 {[%emt 0:00:33]} (39. b3 $18) 39... Nxh5 $16 {[%emt 0:00:40]} 40. Rxf4 {[%emt 0:00:00]} (40. Bd7 $18 {[%cal Od7e8]} Rxd4 41. Rxd4) 40... Nxf4 $16 {[%emt 0:00:00]} 41. Rd4 {[%emt 0:02:13]} g5 {[%emt 0:02:16]} 42. Rxb4 {[%emt 0:01:40]} Re2+ {[%emt 0:12:01]} 43. Kd1 {[%emt 0:00:50]} Re5 {[%emt 0:03:29]} 44. Be4 {[%emt 0:04:07]} h5 {[%emt 0:06:55]} 45. gxh5 {[%emt 0:00:13]} Nxh5 {[%emt 0:00:04]} 46. Rd4 {[%emt 0:06:04]} Nf4 {[%emt 0:05:39]} (46... f5 $16 {might work better.}) 47. b4 $18 {[%emt 0:01:56]} Ke7 {[%emt 0:01:34] [#]} (47... Rb5 {was necessary.} 48. c3 Rb6) 48. Bc6 $1 $18 {[%emt 0:02:14]} f5 {[%emt 0:00:02]} 49. b5 {[%emt 0:00:31]} Rc5 {[%emt 0:02:46]} (49... Re6 $142 50. Bd7 Rf6) 50. c4 $18 {[%emt 0:04:11]} Ne6 $2 {[%emt 0:00:40]} (50... Kf6 51. Bd7 Ke5) 51. Rd7+ $18 {[%emt 0:00:16]} Kf6 {[%emt 0:00:05]} 52. Bd5 {[%emt 0:00:36]} Nf4 {[%emt 0:00:30]} 53. b6 {[%emt 0:01:45]} Rc8 {[%emt 0:00:43]} 54. b7 {[%emt 0:01:30]} Rb8 {[%emt 0:00:04]} 55. Bc6 {[%emt 0:01:59]} Ne6 {[%emt 0:00:30]} 56. Kc2 {[%emt 0:00:55]} g4 {[%emt 0:00:15]} 57. fxg4 {[%emt 0:00:06]} fxg4 {[%emt 0:00:03]} 58. Kc3 {[%emt 0:00:16]} g3 {[%emt 0:00:33]} 59. Kb4 {[%emt 0:01:15]} Nf4 {[%emt 0:01:01]} 60. c5 {[%emt 0:01:33]} Rg8 {[%emt 0:01:18]} 61. Rc7 {[%emt 0:03:42]} g2 {[%emt 0:00:24]} 62. Bxg2 $1 {[%emt 0:00:08]} Rxg2 {[%emt 0:00:06]} 63. Ka3 {[%emt 0:00:14]} ({Weaker is} 63. b8=R Rb2+ 64. Ka5 Rxb8 $11) 63... Rg3+ {[%emt 0:00:36]} 64. Ka4 {[%emt 0:00:13]} Rg1 {[%emt 0:00:32]} 65. Rc6+ {[%emt 0:01:06]} ({Stronger than} 65. b8=R Ra1+ 66. Kb5 Rb1+ 67. Ka6 Rxb8 $11) (65. Rc8 $142 Ne6 66. b8=Q (66. b8=R Nxc5+ 67. Ka3 Nd7 $11) 66... Ra1+ 67. Kb5 Rb1+ 68. Kc6 Rxb8 69. Rxb8) 65... Ke5 {[%emt 0:00:36]} 66. b8=Q+ {[%emt 0:06:58]} ({Not} 66. b8=R Ra1+ 67. Kb5 Rb1+ 68. Kc4 Rxb8 $15) 1-0

[Event "76th Montenegro Championship 2024"]
[Site "Podgorica"]
[Date "2024.02.10"]
[Round "5.4"]
[White "Skvortsov, Andrei"]
[Black "Vukcevic, Nemanja"]
[Result "1/2-1/2"]
[ECO "B53"]
[WhiteElo "2307"]
[BlackElo "2275"]
[Annotator "TA"]
[PlyCount "108"]
[EventDate "2024.02.06"]
[EventType "swiss"]
[EventCountry "MNE"]
[SourceTitle "playchess.com"]
[Source "ChessBase"]
[SourceQuality "1"]
[TimeControl "40/5400+30:1800+30"]

{[%evp 9,108,12,14,12,0,8,4,12,17,20,20,41,40,26,29,31,45,49,54,0,6,0,23,23,45,52,51,0,0,23,56,41,45,53,40,0,0,0,-16,-16,0,1,11,11,57,61,58,28,60,54,66,70,114,65,58,58,95,91,83,65,82,72,79,65,67,55,55,65,58,39,52,58,51,54,43,0,0,0,0,0,0,0,0,0,0,0,0,0,0,0,6,0,0,0,0,0,0,0,0,0,0]} 1. e4 {[%emt 0:01:20]} c5 {[%emt 1:31:00]} 2. Nf3 {[%emt 1:30:10]} d6 {[%emt 0:00:00]} 3. Nc3 {[%emt 0:00:30]} Nf6 {[%emt 0:00:00]} 4. d4 {[%emt 0:00:00]} cxd4 {[%emt 0:00:00]} 5. Qxd4 {[%emt 0:00:00]} Nc6 {[%emt 0:00:00]} 6. Qd3 {[%emt 0:01:30]} g6 {[%emt 0:00:00][%cal Bg7g6,Bg6g5][%mdl 32]} 7. Nd5 {[%emt 0:00:00]} Bg7 {[%emt 0:00:00]} 8. c3 {[%emt 0:00:00]} Nd7 {[%emt 0:00:00]} 9. Bg5 {[%emt 0:00:00][%cal Bc1g5,Bg5h4,Bh4g3][%mdl 32]} h6 {[%emt 0:00:00]} 10. Bh4 {[%emt 0:00:00]} O-O {[%emt 0:00:00]} 11. Rd1 $1 {[%emt 0:00:00]} g5 {[%emt 0:00:00]} 12. Bg3 {[%emt 0:00:00]} Nc5 {[%emt 0:00:00]} 13. Qc2 {[%emt 0:00:00]} f5 {[%emt 0:00:00]} 14. exf5 {[%emt 0:00:00]} (14. Bc4 $1 $14 Kh8 (14... Nxe4 15. Nxe7+ Kh7 16. Nxc8 $16) (14... e6 $2 15. Bxd6 Nxe4 16. Bxf8 $18) 15. exf5) 14... Bxf5 $11 {[%emt 0:00:00]} 15. Qc1 {[%emt 0:00:00]} Kh8 {[%emt 0:00:00]} (15... e6 $5 16. Bxd6 (16. Ne3 d5 $11) 16... exd5 (16... Qxd6 $2 17. Nf6+ Rxf6 18. Rxd6 $18) 17. Bxc5 Re8+ 18. Be2 Rxe2+ 19. Kxe2 Qa5 $14) 16. Ne3 {[%emt 0:00:00][%cal Bd5e3,Be3c4,Bc4a3][%mdl 32]} Be6 {[%emt 0:00:00]} 17. Bc4 {[%emt 0:00:00]} Qd7 {[%emt 0:00:00]} 18. O-O {[%emt 0:00:00]} Bxc4 {[%emt 0:00:00]} 19. Nxc4 {[%emt 0:00:00]} Qf5 {[%emt 0:00:00]} 20. Qe3 {[%emt 0:00:00]} Ne4 {[%emt 0:00:00]} 21. Rfe1 {[%emt 0:00:00]} d5 {[%emt 0:00:00][%cal Oe4g3]} 22. Na3 {[%emt 0:00:00]} Rad8 {[%emt 0:00:00]} 23. Nd4 {[%emt 0:00:00]} Nxd4 {[%emt 0:00:00]} 24. cxd4 {[%emt 0:00:00]} Bf6 {[%emt 0:00:00]} 25. Nb5 {[%emt 0:00:00]} Qd7 {[%emt 0:00:00]} 26. Nc3 {[%emt 0:00:00]} (26. Nxa7 $2 {loses.} Ra8 27. Be5 (27. Qa3 $2 b6 $19) 27... Rxa7 $19) 26... Nxc3 {[%emt 0:00:00]} (26... Nxg3 $11 {feels stronger.} 27. hxg3 Rc8) 27. bxc3 $14 {[%emt 0:00:00]} Rc8 {[%emt 0:00:00]} 28. Rb1 {[%emt 0:00:00]} b6 {[%emt 0:00:00]} 29. Qd3 {[%emt 0:00:00]} Kg7 {[%emt 0:00:00]} 30. Re3 {[%emt 0:00:00] White is more active.} Qa4 {[%emt 0:00:00]} 31. Rb2 {[%emt 0:00:00]} (31. Qf5 $16) 31... Rf7 {[%emt 0:00:00][%cal Of6d4]} 32. h3 {[%emt 0:00:00]} Qc4 {[%emt 0:00:44]} 33. Qb1 {[%emt 0:00:00]} Qa4 {[%emt 0:01:48]} 34. Rbe2 {[%emt 0:00:00]} Qd7 {[%emt 0:01:19]} 35. Qd3 {[%emt 0:00:00]} Rc6 {[%emt 0:01:31]} 36. Kh2 {[%emt 0:00:00]} Qc8 {[%emt 0:00:51]} 37. Rf3 {[%emt 0:00:00]} Re6 {[%emt 0:01:19]} 38. Rxe6 {[%emt 0:00:00]} (38. Qf5 {with more complications.} Rc6 39. Qxd5 Rxc3 40. Rxc3 Qxc3 41. Re4) 38... Qxe6 {[%emt 0:00:04]} 39. Qb5 {[%emt 0:00:00]} Rf8 {[%emt 0:01:31]} 40. Re3 {[%emt 0:00:00]} Qf5 {[%emt 0:00:37]} 41. Qc6 {[%emt 0:00:00]} Rd8 {[%emt 0:06:48]} 42. Qc7 {[%emt 0:00:00]} Qd7 {[%emt 0:02:03] The position is equal.} 43. Qxd7 $1 {[%emt 0:00:00]} Rxd7 $11 {[%emt 0:00:04][%mdl 4096] Endgame. KRB-KRB} 44. Re6 {[%emt 0:00:00]} Kf7 {[%emt 0:02:04]} 45. Rc6 {[%emt 0:00:00]} Rb7 {[%emt 0:01:28]} 46. Be5 {[%emt 0:00:00]} Ke8 {[%emt 0:08:05]} 47. Bxf6 {[%emt 0:00:00]} Kd7 $1 {[%emt 0:00:03]} 48. Bxg5 $1 {[%emt 0:00:00]} Kxc6 {[%emt 0:00:04]} 49. Bxh6 {[%emt 0:00:00] g4 is the strong threat. KR-KB} b5 {[%emt 0:06:06]} 50. a3 {[%emt 0:00:00]} Kd7 {[%emt 0:00:26]} 51. Kg3 {[%emt 0:00:00]} Rb6 {[%emt 0:00:29]} (51... Rc7 $5 52. Bd2 $8 Rc6 $11) 52. Bd2 {[%emt 0:00:00]} Ra6 {[%emt 0:00:48]} 53. Bc1 {[%emt 0:00:00]} Rc6 {[%emt 0:00:47]} (53... Re6 $5 54. Be3 $8 Rc6 $11) 54. Bd2 {[%emt 0:00:00]} Ra6 {[%emt 0:01:03] Weighted Error Value: White=0.09 (flawless) /Black=0.08 (flawless) .  Mistake:       	White=2     	Black=1      Inaccurate:     	White=4     	Black=4      OK:         	White=20    	Black=14     Best:        	---       	Black=1      Strong:       	White=3     	Black=1} 1/2-1/2

[Event "76th Montenegro Championship 2024"]
[Site "Podgorica"]
[Date "2024.02.10"]
[Round "5.5"]
[White "Vujovic, Savo"]
[Black "Tomic, Aleksandar"]
[Result "0-1"]
[ECO "D00"]
[WhiteElo "2137"]
[BlackElo "2398"]
[Annotator "TA"]
[PlyCount "64"]
[EventDate "2024.02.06"]
[EventType "swiss"]
[EventCountry "MNE"]
[SourceTitle "playchess.com"]
[Source "ChessBase"]
[SourceQuality "1"]
[TimeControl "40/5400+30:1800+30"]

{[%evp 10,64,8,9,9,3,5,8,10,-11,-5,-8,-5,0,0,-11,0,0,0,0,0,0,0,-2,0,0,0,-40,-9,-10,-11,-16,0,-33,0,0,0,-33,0,0,0,0,24,13,33,20,17,-19,-23,-19,-21,-23,-11,-45,9,-441,-441]} 1. d4 {[%emt 1:31:00]} Nf6 {[%emt 0:05:54]} 2. Bg5 {[%emt 0:00:00]} g6 {[%emt 0:02:30]} 3. Bxf6 {[%emt 0:00:00]} exf6 {[%emt 0:00:02]} 4. e3 {[%emt 0:00:00]} d5 {[%emt 0:00:07]} 5. c4 {[%emt 0:00:00]} dxc4 {[%emt 0:00:27]} 6. Bxc4 {[%emt 0:00:00]} Bd6 {[%emt 0:00:04]} 7. Nf3 {[%emt 0:00:00]} O-O {[%emt 0:02:30]} 8. O-O {[%emt 0:00:00]} f5 {[%emt 0:04:54] The position is equal.} 9. Nbd2 {[%emt 0:00:00]} Nd7 {[%emt 0:02:41][%cal Bb8d7,Bd7f6,Bf6e4][%mdl 32]} 10. Rc1 {[%emt 0:00:00]} c6 {[%emt 0:03:44]} 11. Qc2 {[%emt 0:00:00]} Nf6 {[%emt 0:02:07]} 12. a3 {[%emt 0:00:00]} a5 {[%emt 0:05:39]} 13. Rfd1 {[%emt 0:00:00]} Qe7 {[%emt 0:01:37]} 14. Bb3 {[%emt 0:00:00]} Kg7 {[%emt 0:05:31]} 15. Nc4 {[%emt 0:00:00]} Bc7 {[%emt 0:00:49][%cal Oa5a4]} 16. Nce5 {[%emt 0:00:00]} Ne4 {[%emt 0:03:52]} 17. Nd3 {[%emt 0:00:00]} Bd6 {[%emt 0:01:37]} 18. d5 {[%emt 0:00:00]} c5 {[%emt 0:02:54]} (18... a4 $5 19. Bxa4 b5 $15) 19. a4 {[%emt 0:00:00]} h5 {[%emt 0:08:21][%cal Bh7h5,Bh5h4,Bh4h3][%mdl 32]} 20. Bc4 {[%emt 0:00:00]} h4 {[%emt 0:02:01]} 21. b3 {[%emt 0:00:00]} g5 {[%emt 0:11:02]} 22. Bb5 {[%emt 0:00:00]} b6 {[%emt 0:03:59]} 23. Nd2 {[%emt 0:00:00] [#]} h3 $1 {[%emt 0:15:33]} 24. g3 {[%emt 0:00:00]} (24. Nc4 hxg2) 24... Nxd2 $1 {[%emt 0:02:29]} 25. Qxd2 {[%emt 0:00:00]} Qe4 {[%emt 0:01:40]} 26. Ne1 {[%emt 0:00:00] Inhibits Qg2+.} f4 {[%emt 0:01:28]} 27. Rc4 {[%emt 0:00:00]} fxe3 {[%emt 0:02:11]} 28. Qxe3 {[%emt 0:00:00]} Qxe3 $40 {[%emt 0:00:46][%mdl 128] White needs to defend precisely.} 29. fxe3 {[%emt 0:00:00]} Ra7 {[%emt 0:02:35]} 30. Nf3 {[%emt 0:00:00]} Re7 {[%emt 0:02:59]} 31. Kf2 {[%emt 0:00:51]} g4 {[%emt 0:00:27] [#]} (31... Kh6 $15) 32. Rcc1 $2 {[%emt 0:00:38][%mdl 8192]} gxf3 {[%emt 0:00:20] Weighted Error Value: White=0.30/Black=0.10 (very precise) .  Loses game:     	White=1     	---        Mistake:       	---       	Black=1      Inaccurate:     	White=4     	Black=3      OK:         	White=13    	Black=9      Best:        	---       	Black=1      Strong:       	---       	Black=1} 0-1

[Event "76th Montenegro Championship 2024"]
[Site "Podgorica"]
[Date "2024.02.10"]
[Round "5.6"]
[White "Ivanovic, Bozidar"]
[Black "Miletic, Vuk"]
[Result "1-0"]
[ECO "B35"]
[WhiteElo "2403"]
[BlackElo "2213"]
[Annotator "TA"]
[PlyCount "81"]
[EventDate "2024.02.06"]
[EventType "swiss"]
[EventCountry "MNE"]
[SourceTitle "playchess.com"]
[Source "ChessBase"]
[SourceQuality "1"]
[TimeControl "40/5400+30:1800+30"]

{[%evp 14,81,19,20,9,0,0,0,12,0,11,-6,0,-10,0,-10,0,-16,-15,-22,7,1,4,0,10,16,36,28,17,20,49,39,46,48,57,21,41,0,74,68,72,61,65,0,0,0,0,0,0,0,0,0,754,754,722,829,829,829,829,829,810,610,829,820,799,788,728,721,721,712]} 1. e4 {[%emt 0:00:10]} c5 {[%emt 0:00:24]} 2. Nf3 {[%emt 0:00:19]} Nc6 {[%emt 0:00:15]} 3. d4 {[%emt 0:00:17]} cxd4 {[%emt 0:00:08]} 4. Nxd4 {[%emt 0:00:13]} g6 {[%emt 0:00:14]} 5. Nc3 {[%emt 0:00:27]} Bg7 {[%emt 0:00:13]} 6. Be3 {[%emt 0:00:29]} Nf6 {[%emt 0:00:11]} 7. Bc4 {[%emt 0:00:35]} O-O {[%emt 0:00:27]} 8. Bb3 {[%emt 0:16:22]} Re8 {[%emt 0:00:34]} 9. h3 {[%emt 0:01:56]} d6 {[%emt 0:00:56]} 10. O-O {[%emt 0:00:25]} Na5 {[%emt 0:00:09] The position is equal.} 11. f4 {[%emt 0:00:55]} b6 {[%emt 0:00:27]} 12. Qd3 {[%emt 0:05:16]} Nxb3 {[%emt 0:04:18]} 13. axb3 {[%emt 0:00:48]} Bb7 {[%emt 0:01:39]} 14. Nf3 {[%emt 0:13:52]} a6 {[%emt 0:17:38]} 15. Rad1 {[%emt 0:03:59]} b5 {[%emt 0:02:04]} 16. f5 {[%emt 0:08:32]} Rc8 {[%emt 0:13:27][%cal Oc8c3]} 17. fxg6 {[%emt 0:01:52]} hxg6 {[%emt 0:00:26]} 18. Ng5 {[%emt 0:00:15]} Qc7 {[%emt 0:18:40]} 19. Rf2 {[%emt 0:01:51]} Rf8 {[%emt 0:09:59]} 20. Nd5 {[%emt 0:03:10]} Bxd5 {[%emt 0:01:40]} 21. exd5 {[%emt 0:00:08]} Nh7 {[%emt 0:07:42]} 22. Nxh7 {[%emt 0:09:22]} Kxh7 {[%emt 0:00:05]} 23. c3 {[%emt 0:00:15]} Be5 {[%emt 0:04:53]} 24. Rdf1 {[%emt 0:01:13]} f6 {[%emt 0:03:55]} 25. g4 {[%emt 0:04:03]} Qd7 {[%emt 0:04:19]} (25... Kg7 $11) 26. Rg2 $1 $16 {[%emt 0:02:49]} Kg7 {[%emt 0:04:00][%cal Ob5b4]} 27. h4 $1 $36 {[%emt 0:06:02][%mdl 2048] White is pushing. White is more active.} Rg8 {[%emt 0:02:30]} 28. g5 {[%emt 0:03:02]} (28. Kf2 $14) 28... f5 $11 {[%emt 0:01:42]} 29. h5 {[%emt 0:06:06]} gxh5 {[%emt 0:00:36]} 30. Bd4 {[%emt 0:05:20]} ({But not} 30. Rxf5 Rcf8 31. Rff2 Rxf2 32. Bxf2 Rf8 $17) (30. Qxf5 Qxf5 31. Rxf5 Kg6 $17) 30... e6 {[%emt 0:00:59]} 31. dxe6 {[%emt 0:00:43]} Qxe6 {[%emt 0:00:05]} 32. Rxf5 {[%emt 0:00:17] And now Bxe5+ would win.} Rgf8 $2 {[%emt 0:01:18][%mdl 8192]} (32... Rcf8 $11 33. Rgf2 Rxf5 34. Rxf5 Bxd4+ 35. Qxd4+ Kh7) 33. Bxe5+ $1 $18 {[%emt 0:00:16] White is clearly winning.} dxe5 {[%emt 0:00:07][%cal Bd6e5,Be5e4][%mdl 32] [#]} 34. Rf6 $1 {[%emt 0:00:08][%mdl 512]} e4 {[%emt 0:00:55]} 35. Qd4 {[%emt 0:01:14]} ({Worse is} 35. Rxe6 exd3 36. Rxa6 Rfd8 $11) 35... Rxf6 {[%emt 0:00:24]} 36. gxf6+ {[%emt 0:00:08] KQR-KQR} Kf8 {[%emt 0:00:14]} 37. Qb4+ {[%emt 0:03:17]} Kf7 {[%emt 0:00:53][%cal Oc8d8] [#]} 38. Rg7+ $1 {[%emt 0:00:10]} ({Weaker is} 38. Qd4 Rg8 $11) 38... Kxf6 {[%emt 0:00:09] [#]} 39. Qd4+ $1 {[%emt 0:00:02]} Kf5 {[%emt 0:00:39]} 40. Qf2+ {[%emt 0:00:00]} Ke5 {[%emt 0:00:00]} 41. Qg3+ {[%emt 0:00:22] Weighted Error Value: White=0.22 (precise) /Black=0.13 (very precise) .  Loses game:     	---       	Black=1      Mistake:       	White=1     	Black=1      Inaccurate:     	White=2     	Black=2      OK:         	White=8     	Black=8      Best:        	---       	Black=3      Strong:       	White=3     	---} 1-0

[Event "76th Montenegro Championship 2024"]
[Site "Podgorica"]
[Date "2024.02.10"]
[Round "5.7"]
[White "Nikcevic, Nebojsa"]
[Black "Krstonijevic, Stjepan"]
[Result "1-0"]
[ECO "D30"]
[WhiteElo "2338"]
[BlackElo "2108"]
[Annotator "TA"]
[PlyCount "41"]
[EventDate "2024.02.06"]
[EventType "swiss"]
[EventCountry "MNE"]
[SourceTitle "playchess.com"]
[Source "ChessBase"]
[SourceQuality "1"]
[TimeControl "40/5400+30:1800+30"]

{[%evp 13,41,18,25,16,30,27,30,23,42,22,44,45,102,86,115,157,136,77,126,100,283,94,689,703,751,736,732,729,702,702]} 1. d4 {[%emt 1:31:00]} d5 {[%emt 0:06:34]} 2. c4 {[%emt 0:00:00]} c6 {[%emt 0:00:31]} 3. Nf3 {[%emt 0:00:00]} Nf6 {[%emt 0:00:17]} 4. e3 {[%emt 0:00:00]} e6 {[%emt 0:00:26]} 5. Nbd2 {[%emt 0:00:00]} Nbd7 {[%emt 0:00:30]} 6. b3 {[%emt 0:00:00]} Bd6 {[%emt 0:03:02]} 7. Bb2 {[%emt 0:00:00]} O-O {[%emt 0:01:33]} 8. Bd3 {[%emt 0:00:00]} Qe7 {[%emt 0:02:57]} 9. Ne5 {[%emt 0:00:00]} c5 {[%emt 0:09:14]} 10. O-O {[%emt 0:00:00] White has an edge.} b6 {[%emt 0:00:22]} 11. Nc6 {[%emt 0:00:00]} Qe8 {[%emt 0:00:15]} 12. e4 {[%emt 0:00:00]} cxd4 {[%emt 0:08:15]} (12... Bb7 $14) 13. cxd5 $16 {[%emt 0:00:00]} (13. Bxd4 Bb7 14. exd5 Qc8 $14) 13... exd5 {[%emt 0:28:25]} 14. exd5 {[%emt 0:00:00]} (14. Nxd4 dxe4 (14... Nxe4 15. Bb5 $11) 15. Re1 Nc5 $11) 14... Nc5 {[%emt 0:00:18] [#]} 15. Nc4 {[%emt 0:00:00]} (15. Bc4 $142 $1) 15... Qd7 {[%emt 0:01:38]} (15... Nxd5 $142 16. Bxh7+ Kxh7 17. Qh5+ (17. Nxd6 $2 Qxc6 18. Qxd4 f6 $19) (17. Qxd4 Nf6 $16) 17... Kg8 18. Qxd5 (18. Nxd6 $2 Qxc6 19. Nxc8 Raxc8 $19) 18... Bxh2+ 19. Kxh2 Bb7) 16. Bb1 {[%emt 0:00:00] White is more active.} (16. Nxd4 Nxd3 17. Qxd3 Bc5 $14) 16... Bb7 $2 {[%emt 0:30:43]} (16... Re8 $16) 17. Qxd4 $2 {[%emt 0:00:00]} (17. Nxd4 $18 {and the rest is easy. Hoping for Nf5.} Nce4 18. f3 Bxd5 19. Bxe4 (19. fxe4 Bxc4 20. bxc4 Be5 $18)) 17... Ne6 $2 {[%emt 0:00:07][%mdl 8192]} 18. Qh4 $18 {[%emt 0:00:00] White is clearly winning.} ({Worse is} 18. dxe6 Qxc6 19. Ne3 (19. Nxd6 $2 Qxg2#) 19... Bc5 $11) 18... Bxc6 {[%emt 0:03:45]} 19. Bxf6 {[%emt 0:00:00][%csl Gb1][%cal Rh4h7] [#]} h6 {[%emt 0:00:12]} 20. dxc6 {[%emt 0:00:00]} Qxc6 {[%emt 0:00:13]} 21. Be4 {[%emt 0:00:00] Weighted Error Value: White=0.31/Black=0.89.  Loses game:     	---       	Black=2      Missed win:     	White=1     	---        Mistake:       	White=1     	Black=2      Inaccurate:     	---       	Black=1      OK:         	White=4     	Black=2      Best:        	White=1     	---} 1-0